Department family,Entity,Date,Expense type,Expense area,Supplier,Transaction number, Amount ,Description
Department of Health,NHS Blood and Transplant,05/03/2021,CAMPAIGN EVENTS,Convalescent Plasma,23RED LTD,2540890,92445.3,Campaign events relating to recriuitment of donors
Department of Health,NHS Blood and Transplant,26/03/2021,EXTERNAL MARKETING SERVICES,Donor Experience,23RED LTD,2542805,117925.58,"External costs of marketing services, primarily relating to communications with donors"
Department of Health,NHS Blood and Transplant,31/03/2021,OTHER PROFESSIONAL FEES,Donor Experience,23RED LTD,2563308,48129.53,Other professional fees
Department of Health,NHS Blood and Transplant,19/03/2021,AVERAGE COST VARIANCE,Miscellaneous and Capital Charges,ABBOTT LABORATORIES LTD,2556524,0.01,Difference between Purchase Order and Supplier Invoice price for Stores items
Department of Health,NHS Blood and Transplant,26/03/2021,AVERAGE COST VARIANCE,Miscellaneous and Capital Charges,ABBOTT LABORATORIES LTD,2556511,0.01,Difference between Purchase Order and Supplier Invoice price for Stores items
Department of Health,NHS Blood and Transplant,26/03/2021,TEST KITS CMV,"Blood Supply: Manufacturing, Testing & Issue",ABBOTT LABORATORIES LTD,2556511,1733.16,For testing of donations and samples for specific markers
Department of Health,NHS Blood and Transplant,19/03/2021,TEST KITS CMV,"Blood Supply: Manufacturing, Testing & Issue",ABBOTT LABORATORIES LTD,2556524,37621.32,For testing of donations and samples for specific markers
Department of Health,NHS Blood and Transplant,19/03/2021,TEST KITS HEPB,"Blood Supply: Manufacturing, Testing & Issue",ABBOTT LABORATORIES LTD,2556524,24493.26,For testing of donations and samples for specific markers
Department of Health,NHS Blood and Transplant,26/03/2021,TEST KITS HEPB,"Blood Supply: Manufacturing, Testing & Issue",ABBOTT LABORATORIES LTD,2556511,24582.82,For testing of donations and samples for specific markers
Department of Health,NHS Blood and Transplant,26/03/2021,TEST KITS HEPC,"Blood Supply: Manufacturing, Testing & Issue",ABBOTT LABORATORIES LTD,2556511,54853.3,For testing of donations and samples for specific markers
Department of Health,NHS Blood and Transplant,19/03/2021,TEST KITS HEPC,"Blood Supply: Manufacturing, Testing & Issue",ABBOTT LABORATORIES LTD,2556524,133117.65,For testing of donations and samples for specific markers
Department of Health,NHS Blood and Transplant,26/03/2021,TEST KITS HIV,"Blood Supply: Manufacturing, Testing & Issue",ABBOTT LABORATORIES LTD,2556511,20397.11,For testing of donations and samples for specific markers
Department of Health,NHS Blood and Transplant,19/03/2021,TEST KITS HIV,"Blood Supply: Manufacturing, Testing & Issue",ABBOTT LABORATORIES LTD,2556524,21586.6,For testing of donations and samples for specific markers
Department of Health,NHS Blood and Transplant,26/03/2021,TEST KITS HTLV,"Blood Supply: Manufacturing, Testing & Issue",ABBOTT LABORATORIES LTD,2556511,12600,For testing of donations and samples for specific markers
Department of Health,NHS Blood and Transplant,19/03/2021,TEST KITS HTLV,"Blood Supply: Manufacturing, Testing & Issue",ABBOTT LABORATORIES LTD,2556524,19800,For testing of donations and samples for specific markers
Department of Health,NHS Blood and Transplant,31/03/2021,EXTERNAL SERVICES OTHER,Convalescent Plasma,ACCELER8 TRAINING LTD,2565228,49600,External costs of providing other services
Department of Health,NHS Blood and Transplant,31/03/2021,CAPITAL PURCHASES ACCOUNT,NBS and ODT All Areas,ACCUSCIENCE LTD,2564550,36992.98,Purchase of Fixed Assets
Department of Health,NHS Blood and Transplant,31/03/2021,CAPITAL PURCHASES ACCOUNT,NBS and ODT All Areas,ACCUSCIENCE LTD,2564554,36992.98,Purchase of Fixed Assets
Department of Health,NHS Blood and Transplant,31/03/2021,CAPITAL PURCHASES ACCOUNT,NBS and ODT All Areas,ACCUSCIENCE LTD,2564549,55489.46,Purchase of Fixed Assets
Department of Health,NHS Blood and Transplant,19/03/2021,AVERAGE COST VARIANCE,Miscellaneous and Capital Charges,AGILENT TECHNOLOGIES UK LIMITED,2560598,-0.01,Difference between Purchase Order and Supplier Invoice price for Stores items
Department of Health,NHS Blood and Transplant,19/03/2021,CAPITAL PURCHASES ACCOUNT,NBS and ODT All Areas,AGILENT TECHNOLOGIES UK LIMITED,2560598,49874.06,Purchase of Fixed Assets
Department of Health,NHS Blood and Transplant,12/03/2021,CAPITAL PURCHASES ACCOUNT,NBS and ODT All Areas,AGILENT TECHNOLOGIES UK LIMITED,2556120,112980.35,Purchase of Fixed Assets
Department of Health,NHS Blood and Transplant,26/03/2021,TEMPORARY OTHER,"Blood Supply: Manufacturing, Testing & Issue",ALEXANDER MANN SOLUTIONS LTD,2557912,394.6,Temporary Staff costs
Department of Health,NHS Blood and Transplant,31/03/2021,TEMPORARY OTHER,"Blood Supply: Manufacturing, Testing & Issue",ALEXANDER MANN SOLUTIONS LTD,2564504,455.62,Temporary Staff costs
Department of Health,NHS Blood and Transplant,19/03/2021,TEMPORARY OTHER,Finance,ALEXANDER MANN SOLUTIONS LTD,2557916,557.93,Temporary Staff costs
Department of Health,NHS Blood and Transplant,12/03/2021,TEMPORARY OTHER,"Blood Supply: Manufacturing, Testing & Issue",ALEXANDER MANN SOLUTIONS LTD,2557911,717.55,Temporary Staff costs
Department of Health,NHS Blood and Transplant,12/03/2021,TEMPORARY OTHER,"Blood Supply: Manufacturing, Testing & Issue",ALEXANDER MANN SOLUTIONS LTD,2557914,942.76,Temporary Staff costs
Department of Health,NHS Blood and Transplant,12/03/2021,TEMPORARY OTHER,Quality,ALEXANDER MANN SOLUTIONS LTD,2557914,1168.87,Temporary Staff costs
Department of Health,NHS Blood and Transplant,19/03/2021,TEMPORARY OTHER,Quality,ALEXANDER MANN SOLUTIONS LTD,2557916,1168.87,Temporary Staff costs
Department of Health,NHS Blood and Transplant,26/03/2021,TEMPORARY OTHER,Quality,ALEXANDER MANN SOLUTIONS LTD,2557912,1168.87,Temporary Staff costs
Department of Health,NHS Blood and Transplant,19/03/2021,TEMPORARY OTHER,"Blood Supply: Manufacturing, Testing & Issue",ALEXANDER MANN SOLUTIONS LTD,2557916,1446.18,Temporary Staff costs
Department of Health,NHS Blood and Transplant,12/03/2021,TEMPORARY OTHER,Quality,ALEXANDER MANN SOLUTIONS LTD,2557911,1753.31,Temporary Staff costs
Department of Health,NHS Blood and Transplant,19/03/2021,TEMPORARY OTHER,OTDT - Change Programme,ALEXANDER MANN SOLUTIONS LTD,2557916,3018.06,Temporary Staff costs
Department of Health,NHS Blood and Transplant,31/03/2021,TEMPORARY OTHER,Clinical Services: Medical,ALEXANDER MANN SOLUTIONS LTD,2564504,3597.12,Temporary Staff costs
Department of Health,NHS Blood and Transplant,12/03/2021,TEMPORARY OTHER,Clinical Services: Medical,ALEXANDER MANN SOLUTIONS LTD,2557914,3608,Temporary Staff costs
Department of Health,NHS Blood and Transplant,12/03/2021,TEMPORARY OTHER,Clinical Services: Medical,ALEXANDER MANN SOLUTIONS LTD,2557911,3651.54,Temporary Staff costs
Department of Health,NHS Blood and Transplant,19/03/2021,TEMPORARY OTHER,Clinical Services: Medical,ALEXANDER MANN SOLUTIONS LTD,2557916,3651.54,Temporary Staff costs
Department of Health,NHS Blood and Transplant,26/03/2021,TEMPORARY OTHER,Clinical Services: Medical,ALEXANDER MANN SOLUTIONS LTD,2557912,3651.54,Temporary Staff costs
Department of Health,NHS Blood and Transplant,12/03/2021,TEMPORARY OTHER,Business Transformation Services,ALEXANDER MANN SOLUTIONS LTD,2557914,5343.36,Temporary Staff costs
Department of Health,NHS Blood and Transplant,12/03/2021,TEMPORARY OTHER,OTDT - Change Programme,ALEXANDER MANN SOLUTIONS LTD,2557914,6153.04,Temporary Staff costs
Department of Health,NHS Blood and Transplant,12/03/2021,TEMPORARY OTHER,OTDT - Change Programme,ALEXANDER MANN SOLUTIONS LTD,2557911,6501.36,Temporary Staff costs
Department of Health,NHS Blood and Transplant,26/03/2021,TEMPORARY OTHER,OTDT - Change Programme,ALEXANDER MANN SOLUTIONS LTD,2557912,6501.36,Temporary Staff costs
Department of Health,NHS Blood and Transplant,31/03/2021,TEMPORARY OTHER,OTDT - Change Programme,ALEXANDER MANN SOLUTIONS LTD,2564504,6501.36,Temporary Staff costs
Department of Health,NHS Blood and Transplant,12/03/2021,TEMPORARY OTHER,Business Transformation Services,ALEXANDER MANN SOLUTIONS LTD,2557911,6679.2,Temporary Staff costs
Department of Health,NHS Blood and Transplant,26/03/2021,TEMPORARY OTHER,Business Transformation Services,ALEXANDER MANN SOLUTIONS LTD,2557912,13358.4,Temporary Staff costs
Department of Health,NHS Blood and Transplant,19/03/2021,TEMPORARY OTHER,"Digital, Data and Technology Services",ALEXANDER MANN SOLUTIONS LTD,2557916,27543.61,Temporary Staff costs
Department of Health,NHS Blood and Transplant,31/03/2021,TEMPORARY OTHER,"Digital, Data and Technology Services",ALEXANDER MANN SOLUTIONS LTD,2564504,30261.78,Temporary Staff costs
Department of Health,NHS Blood and Transplant,12/03/2021,TEMPORARY OTHER,"Digital, Data and Technology Services",ALEXANDER MANN SOLUTIONS LTD,2557911,31057.52,Temporary Staff costs
Department of Health,NHS Blood and Transplant,26/03/2021,TEMPORARY OTHER,"Digital, Data and Technology Services",ALEXANDER MANN SOLUTIONS LTD,2557912,33467.49,Temporary Staff costs
Department of Health,NHS Blood and Transplant,12/03/2021,TEMPORARY OTHER,"Digital, Data and Technology Services",ALEXANDER MANN SOLUTIONS LTD,2557914,33735.26,Temporary Staff costs
Department of Health,NHS Blood and Transplant,31/03/2021,AVERAGE COST VARIANCE,Miscellaneous and Capital Charges,ALLIED PUBLICITY SERVICES MANCHESTER LTD,2564760,-0.03,Difference between Purchase Order and Supplier Invoice price for Stores items
Department of Health,NHS Blood and Transplant,19/03/2021,AVERAGE COST VARIANCE,Miscellaneous and Capital Charges,ALLIED PUBLICITY SERVICES MANCHESTER LTD,2557705,0.01,Difference between Purchase Order and Supplier Invoice price for Stores items
Department of Health,NHS Blood and Transplant,19/03/2021,AVERAGE COST VARIANCE,Miscellaneous and Capital Charges,ALLIED PUBLICITY SERVICES MANCHESTER LTD,2557714,0.01,Difference between Purchase Order and Supplier Invoice price for Stores items
Department of Health,NHS Blood and Transplant,31/03/2021,EXTERNAL MAILING SERVICES,Donor Experience,ALLIED PUBLICITY SERVICES MANCHESTER LTD,2562118,6.46,"External costs of mailing services, primarily relating to communications with donors"
Department of Health,NHS Blood and Transplant,19/03/2021,EXTERNAL MAILING SERVICES,Donor Experience,ALLIED PUBLICITY SERVICES MANCHESTER LTD,2557714,8.07,"External costs of mailing services, primarily relating to communications with donors"
Department of Health,NHS Blood and Transplant,12/03/2021,EXTERNAL MAILING SERVICES,Donor Experience,ALLIED PUBLICITY SERVICES MANCHESTER LTD,2553123,12.91,"External costs of mailing services, primarily relating to communications with donors"
Department of Health,NHS Blood and Transplant,19/03/2021,EXTERNAL MAILING SERVICES,Organ Donation & Transplantation,ALLIED PUBLICITY SERVICES MANCHESTER LTD,2557705,21873.97,"External costs of mailing services, primarily relating to communications with donors"
Department of Health,NHS Blood and Transplant,31/03/2021,EXTERNAL MAILING SERVICES,Donor Experience,ALLIED PUBLICITY SERVICES MANCHESTER LTD,2563306,26776.18,"External costs of mailing services, primarily relating to communications with donors"
Department of Health,NHS Blood and Transplant,31/03/2021,POSTAGE,Donor Experience,ALLIED PUBLICITY SERVICES MANCHESTER LTD,2563306,368.27,Postage costs
Department of Health,NHS Blood and Transplant,05/03/2021,POSTAGE,Donor Experience,ALLIED PUBLICITY SERVICES MANCHESTER LTD,2550529,23170.32,Postage costs
Department of Health,NHS Blood and Transplant,19/03/2021,POSTAGE,Donor Experience,ALLIED PUBLICITY SERVICES MANCHESTER LTD,2557714,25681.93,Postage costs
Department of Health,NHS Blood and Transplant,05/03/2021,POSTAGE,Donor Experience,ALLIED PUBLICITY SERVICES MANCHESTER LTD,2550473,25877.37,Postage costs
Department of Health,NHS Blood and Transplant,12/03/2021,POSTAGE,Donor Experience,ALLIED PUBLICITY SERVICES MANCHESTER LTD,2553123,26114.9,Postage costs
Department of Health,NHS Blood and Transplant,31/03/2021,POSTAGE,Donor Experience,ALLIED PUBLICITY SERVICES MANCHESTER LTD,2562118,31566.65,Postage costs
Department of Health,NHS Blood and Transplant,05/03/2021,POSTAGE,Donor Experience,ALLIED PUBLICITY SERVICES MANCHESTER LTD,2550483,31908.71,Postage costs
Department of Health,NHS Blood and Transplant,31/03/2021,POSTAGE,Donor Experience,ALLIED PUBLICITY SERVICES MANCHESTER LTD,2564760,33538.69,Postage costs
Department of Health,NHS Blood and Transplant,31/03/2021,IT SOFTWARE LICENCE FEES,"Digital, Data and Technology Services",ATOS CONSULTING LIMITED,2565205,84194.1,Purchase of IT software licences
Department of Health,NHS Blood and Transplant,26/03/2021,EXTERNAL SERVICES OTHER,Convalescent Plasma,BAIN & COMPANY INC,2554335,168750,External costs of providing other services
Department of Health,NHS Blood and Transplant,26/03/2021,EXTERNAL SERVICES OTHER,Convalescent Plasma,BAIN & COMPANY INC,2552343,565000,External costs of providing other services
Department of Health,NHS Blood and Transplant,05/03/2021,EXTERNAL SERVICES OTHER,Clinical Services: Medical,BBTS ENTERPRISES LTD,2551685,38000,External costs of providing other services
Department of Health,NHS Blood and Transplant,12/03/2021,CAPITAL PURCHASES ACCOUNT,NBS and ODT All Areas,BECTON DICKINSON UK LTD,2556933,72720,Purchase of Fixed Assets
Department of Health,NHS Blood and Transplant,19/03/2021,CAPITAL PURCHASES ACCOUNT,NBS and ODT All Areas,BECTON DICKINSON UK LTD,2560348,145440,Purchase of Fixed Assets
Department of Health,NHS Blood and Transplant,12/03/2021,CAPITAL PURCHASES ACCOUNT,NBS and ODT All Areas,BIOQUELL UK LTD,2557582,87253.2,Purchase of Fixed Assets
Department of Health,NHS Blood and Transplant,12/03/2021,CAPITAL PURCHASES ACCOUNT,NBS and ODT All Areas,BIOQUELL UK LTD,2557583,87253.2,Purchase of Fixed Assets
Department of Health,NHS Blood and Transplant,12/03/2021,CAPITAL PURCHASES ACCOUNT,NBS and ODT All Areas,BIOQUELL UK LTD,2557581,162670.8,Purchase of Fixed Assets
Department of Health,NHS Blood and Transplant,26/03/2021,EQUIPMENT LEASE/HIRE,Change Programme (Blood & Corporate),BT GLOBAL SERVICES,2554244,163009.2,Costs of hiring/leasing equipment
Department of Health,NHS Blood and Transplant,05/03/2021,IT COMMUNICATIONS LINKS,Donor Experience,CABINET OFFICE,2548671,25284.17,Costs of IT infrastructure communications links
Department of Health,NHS Blood and Transplant,26/02/2021,CTS EYE RETRIEVAL COSTS,EYE RETRIEVAL SCHEME,Cambridge University Hospital NHSFT,3023,54314,Contracts with other NHS bodies for eye retrieval costs
Department of Health,NHS Blood and Transplant,12/02/2021,DIRECT CONSUMABLES,AD - UK COMMISSIONING,Cambridge University Hospitals NHS Foundation Trust,3020,81437.58,IAT Nors Consumables Qt3 2021
Department of Health,NHS Blood and Transplant,12/02/2021,DIRECT CONSUMABLES,AD - UK COMMISSIONING,Central Manchester Uni Hospitals NHS Foundation Trust,3020,79570.2,IAT Nors Consumables Qt3 2021
Department of Health,NHS Blood and Transplant,19/03/2021,AVERAGE COST VARIANCE,Miscellaneous and Capital Charges,CLEARVISION LTD,2553636,-0.01,Difference between Purchase Order and Supplier Invoice price for Stores items
Department of Health,NHS Blood and Transplant,19/03/2021,IT SOFTWARE LICENCE FEES,"Digital, Data and Technology Services",CLEARVISION LTD,2553636,29006.95,Purchase of IT software licences
Department of Health,NHS Blood and Transplant,26/03/2021,EQUIPMENT PURCHASES,People,COMPUTACENTER  UK LTD,2563282,34782.62,Purchase of Equipment
Department of Health,NHS Blood and Transplant,12/03/2021,PREMISES MAINTENANCE - MINOR WORKS,Estates & Facilities,CONCRETE REPAIRS LTD,2554232,25800,Minor works projects costs
Department of Health,NHS Blood and Transplant,26/03/2021,TRAVEL AND HOTEL SUSPENSE ACCOUNT,NBS and ODT All Areas,CORPORATE TRAVEL MANAGEMENT (NORTH) LTD,2555163,31610.24,Travel and hotel costs arising from central booking system used
Department of Health,NHS Blood and Transplant,05/03/2021,PREMISES MAINTENANCE - MINOR WORKS,Convalescent Plasma,DAWSON GROUP,2551710,62142,Minor works projects costs
Department of Health,NHS Blood and Transplant,05/03/2021,PREMISES MAINTENANCE - MINOR WORKS,Convalescent Plasma,DAWSON GROUP,2551712,63996,Minor works projects costs
Department of Health,NHS Blood and Transplant,31/03/2021,EXTERNAL SERVICES OTHER,OTDT - Change Programme,DELOITTE MCS LTD,2565178,42000,External costs of providing other services
Department of Health,NHS Blood and Transplant,31/03/2021,EXTERNAL SERVICES OTHER,OTDT - Change Programme,DELOITTE MCS LTD,2565169,60000,External costs of providing other services
Department of Health,NHS Blood and Transplant,05/03/2021,EXTERNAL SERVICES OTHER,Donor Experience,DELOITTE MCS LTD,2540869,61050,External costs of providing other services
Department of Health,NHS Blood and Transplant,31/03/2021,EXTERNAL SERVICES OTHER,Change Programme (Blood & Corporate),DELOITTE MCS LTD,2565266,106400,External costs of providing other services
Department of Health,NHS Blood and Transplant,31/03/2021,EXTERNAL SERVICES OTHER,Change Programme (Blood & Corporate),DELOITTE MCS LTD,2565265,143640,External costs of providing other services
Department of Health,NHS Blood and Transplant,31/03/2021,EXTERNAL SERVICES OTHER,OTDT - Change Programme,DELOITTE MCS LTD,2565176,150000,External costs of providing other services
Department of Health,NHS Blood and Transplant,19/03/2021,EXTERNAL SERVICES OTHER,Convalescent Plasma,DELOITTE MCS LTD,2553884,154610.3,External costs of providing other services
Department of Health,NHS Blood and Transplant,26/03/2021,EXTERNAL SERVICES OTHER,Convalescent Plasma,DELOITTE MCS LTD,2553888,297228.45,External costs of providing other services
Department of Health,NHS Blood and Transplant,31/03/2021,EXTERNAL SERVICES OTHER,OTDT - Change Programme,DELOITTE MCS LTD,2565172,300000,External costs of providing other services
Department of Health,NHS Blood and Transplant,05/03/2021,EXTERNAL SERVICES OTHER,Convalescent Plasma,DELOITTE MCS LTD,2552247,358073.13,External costs of providing other services
Department of Health,NHS Blood and Transplant,31/03/2021,EXTERNAL SERVICES OTHER,OTDT - Change Programme,DELOITTE MCS LTD,2564823,375250,External costs of providing other services
Department of Health,NHS Blood and Transplant,05/03/2021,EXTERNAL SERVICES OTHER,Convalescent Plasma,DELOITTE MCS LTD,2552249,523238.75,External costs of providing other services
Department of Health,NHS Blood and Transplant,05/03/2021,EXTERNAL SERVICES OTHER,Convalescent Plasma,DELOITTE MCS LTD,2552246,532349.69,External costs of providing other services
Department of Health,NHS Blood and Transplant,12/03/2021,OTHER PROFESSIONAL FEES,NBS and ODT All Areas,DELOITTE MCS LTD,2556496,202000,Other professional fees
Department of Health,NHS Blood and Transplant,08/02/2021,CAPITAL CHARGES CONTROL,NBS and ODT All Areas,Department of Health,3018,8985000,RBS - Inter Account Transfer - Department of Health
Department of Health,NHS Blood and Transplant,12/03/2021,IT SOFTWARE,Finance,DEPARTMENT OF HEALTH AND SOCIAL CARE,2553448,38275.86,Purchase of IT software
Department of Health,NHS Blood and Transplant,12/03/2021,IT SOFTWARE LICENCE FEES,Finance,DEPARTMENT OF HEALTH AND SOCIAL CARE,2553448,19062,Purchase of IT software licences
Department of Health,NHS Blood and Transplant,26/03/2021,NBA RECHARGES,Miscellaneous and Capital Charges,DEPARTMENT OF HEALTH AND SOCIAL CARE,2562032,769893.86,Charges from third parties for Research & Development projects
Department of Health,NHS Blood and Transplant,19/03/2021,RENT/LEASE,Estates & Facilities,DUCHY OF LANCASTER,2559264,126000,Property rent costs
Department of Health,NHS Blood and Transplant,19/03/2021,RENT/LEASE,Estates & Facilities,EDDISONS COMMERCIAL PROPERTY MANAGEMENT LIMITED,2559524,162086.4,Property rent costs
Department of Health,NHS Blood and Transplant,12/03/2021,ELECTRICITY,Estates & Facilities,EDF ENERGY,2556347,30331.29,Electricity costs
Department of Health,NHS Blood and Transplant,19/03/2021,ELECTRICITY,Estates & Facilities,EDF ENERGY,2558988,34782.6,Electricity costs
Department of Health,NHS Blood and Transplant,19/03/2021,ELECTRICITY,Estates & Facilities,EDF ENERGY,2558985,44070.24,Electricity costs
Department of Health,NHS Blood and Transplant,19/03/2021,ELECTRICITY,Estates & Facilities,EDF ENERGY,2558981,89313.43,Electricity costs
Department of Health,NHS Blood and Transplant,31/03/2021,MANAGEMENT CONSULTANTS,Clinical Services: DTAS,EDGE TESTING SOLUTIONS LTD,2563992,21000,Management consultancy fees incurred
Department of Health,NHS Blood and Transplant,31/03/2021,EXTERNAL SERVICES OTHER,Change Programme (Blood & Corporate),ENGAGE ESM LIMITED,2565202,36960,External costs of providing other services
Department of Health,NHS Blood and Transplant,05/03/2021,EXTERNAL MARKETING SERVICES,OTDT - Change Programme,ENGINE PARTNERS UK LLP,2551485,50934,"External costs of marketing services, primarily relating to communications with donors"
Department of Health,NHS Blood and Transplant,05/03/2021,EXTERNAL SERVICES OTHER,Convalescent Plasma,ENGINE PARTNERS UK LLP,2551483,48414,External costs of providing other services
Department of Health,NHS Blood and Transplant,19/03/2021,COURIER & DELIVERY CHARGES,Blood Supply: Logistics,FEDEX EXPRESS UK TRANSPORTATION LIMITED (FORMERLY TNT EXPRESS),2559700,60680.13,External courier and transport company costs
Department of Health,NHS Blood and Transplant,26/03/2021,COURIER & DELIVERY CHARGES,Blood Supply: Logistics,FEDEX EXPRESS UK TRANSPORTATION LIMITED (FORMERLY TNT EXPRESS),2562973,67432.14,External courier and transport company costs
Department of Health,NHS Blood and Transplant,19/03/2021,COURIER & DELIVERY CHARGES,Blood Supply: Logistics,FEDEX EXPRESS UK TRANSPORTATION LIMITED (FORMERLY TNT EXPRESS),2560238,69068.09,External courier and transport company costs
Department of Health,NHS Blood and Transplant,31/03/2021,IT SOFTWARE LICENCE FEES,People,FILTERED TECHNOLOGIES LIMITED,2556810,34110,Purchase of IT software licences
Department of Health,NHS Blood and Transplant,19/03/2021,CAPITAL PURCHASES ACCOUNT,NBS and ODT All Areas,FISHER SCIENTIFIC UK LTD,2559641,82893.89,Purchase of Fixed Assets
Department of Health,NHS Blood and Transplant,31/03/2021,EXTERNAL SERVICES OTHER,Change Programme (Blood & Corporate),FUTUREGOV LTD,2565235,36037.5,External costs of providing other services
Department of Health,NHS Blood and Transplant,26/03/2021,EXTERNAL SERVICES OTHER,OTDT - Change Programme,FUTUREGOV LTD,2553464,51840,External costs of providing other services
Department of Health,NHS Blood and Transplant,26/03/2021,EXTERNAL SERVICES OTHER,Convalescent Plasma,FUTUREGOV LTD,2553462,54720,External costs of providing other services
Department of Health,NHS Blood and Transplant,26/03/2021,EXTERNAL SERVICES OTHER,Convalescent Plasma,FUTUREGOV LTD,2533728,62550,External costs of providing other services
Department of Health,NHS Blood and Transplant,26/03/2021,EXTERNAL SERVICES OTHER,Change Programme (Blood & Corporate),FUTUREGOV LTD,2550585,75742.5,External costs of providing other services
Department of Health,NHS Blood and Transplant,26/03/2021,CAPITAL PURCHASES ACCOUNT,NBS and ODT All Areas,G RAD SERVICES LTD,2562672,222870,Purchase of Fixed Assets
Department of Health,NHS Blood and Transplant,26/03/2021,CAPITAL PURCHASES ACCOUNT,NBS and ODT All Areas,G RAD SERVICES LTD,2562674,222870,Purchase of Fixed Assets
Department of Health,NHS Blood and Transplant,31/03/2021,AVERAGE COST VARIANCE,Miscellaneous and Capital Charges,GENMED ME LTD,2555837,44.1,Difference between Purchase Order and Supplier Invoice price for Stores items
Department of Health,NHS Blood and Transplant,31/03/2021,HARNESS - 1+1,Blood Supply: Blood Donation,GENMED ME LTD,2564615,9117.1,Consumable supplies for platelet collections 
Department of Health,NHS Blood and Transplant,31/03/2021,HARNESS - FFP,Convalescent Plasma,GENMED ME LTD,2555837,273249.01,Consumable supplies for plasma collections 
Department of Health,NHS Blood and Transplant,31/03/2021,HARNESS - PLATELET,Blood Supply: Blood Donation,GENMED ME LTD,2564615,368001.97,Consumable supplies for platelet collections 
Department of Health,NHS Blood and Transplant,05/03/2021,CAPITAL PURCHASES ACCOUNT,NBS and ODT All Areas,GLOBAL LIFE SCIENCES SOLUTIONS OPERATIONS UK LIMITED,2552348,127740.91,Purchase of Fixed Assets
Department of Health,NHS Blood and Transplant,05/03/2021,AUDIT INTERNAL,Finance,GOVERNMENT INTERNAL AUDIT AGENCY,2544387,105000,Fees for internal audit work
Department of Health,NHS Blood and Transplant,31/03/2021,TEST KITS - MOLECULAR,"Blood Supply: Manufacturing, Testing & Issue",GRIFOLS UK LTD,2559592,58500,For testing of donations and samples for specific markers
Department of Health,NHS Blood and Transplant,26/03/2021,RENT/LEASE,Convalescent Plasma,HAGLEY ESTATES (HAWKSTONE PROPERTIES (CHELMSFORD)LLP,2555479,35896.86,Property rent costs
Department of Health,NHS Blood and Transplant,05/03/2021,EXTERNAL SERVICES OTHER,Convalescent Plasma,HIPPO DIGITAL LIMITED,2545881,35250,External costs of providing other services
Department of Health,NHS Blood and Transplant,31/03/2021,EXTERNAL SERVICES OTHER,Convalescent Plasma,HIPPO DIGITAL LIMITED,2544576,49600,External costs of providing other services
Department of Health,NHS Blood and Transplant,12/03/2021,EXTERNAL SERVICES OTHER,Convalescent Plasma,HIPPO DIGITAL LIMITED,2551362,55600,External costs of providing other services
Department of Health,NHS Blood and Transplant,05/03/2021,LOSSES & COMPENSATION,Blood Supply: Logistics,HITACHI CAPITAL,2555393,70146,Losses and compensation costs arising from claims
Department of Health,NHS Blood and Transplant,31/03/2021,OTHER PROFESSIONAL FEES,Blood Supply: Logistics,HITACHI CAPITAL,2565306,3029.4,Other professional fees
Department of Health,NHS Blood and Transplant,31/03/2021,VEHICLE REPAIRS & MAINTENANCE,Blood Supply: Logistics,HITACHI CAPITAL,2565306,61333.74,External contract for fleet vehicle repairs and maintenance
Department of Health,NHS Blood and Transplant,31/03/2021,NCG FUNDED NON-PAY INITIATIVES,Miscellaneous and Capital Charges,HM REVENUE & CUSTOMS,2564777,-72504.73,Apprenticeship Levy
Department of Health,NHS Blood and Transplant,19/03/2021,NCG FUNDED NON-PAY INITIATIVES,Miscellaneous and Capital Charges,HM REVENUE & CUSTOMS,2560602,80325,Apprenticeship Levy
Department of Health,NHS Blood and Transplant,26/03/2021,COURIER & DELIVERY CHARGES,Organ Donation & Transplantation,IMT MEDICAL TRANSPORT LIMITED,2556407,21430.96,External courier and transport company costs
Department of Health,NHS Blood and Transplant,31/03/2021,COURIER & DELIVERY CHARGES,Organ Donation & Transplantation,IMT MEDICAL TRANSPORT LIMITED,2559917,26164.95,External courier and transport company costs
Department of Health,NHS Blood and Transplant,31/03/2021,COURIER & DELIVERY CHARGES,Organ Donation & Transplantation,IMT MEDICAL TRANSPORT LIMITED,2564663,26866.98,External courier and transport company costs
Department of Health,NHS Blood and Transplant,31/03/2021,COURIER & DELIVERY CHARGES,Organ Donation & Transplantation,IMT MEDICAL TRANSPORT LIMITED,2563128,29042.45,External courier and transport company costs
Department of Health,NHS Blood and Transplant,12/03/2021,COURIER & DELIVERY CHARGES,Organ Donation & Transplantation,IMT MEDICAL TRANSPORT LIMITED,2557653,40183.22,External courier and transport company costs
Department of Health,NHS Blood and Transplant,31/03/2021,IT SOFTWARE,"Digital, Data and Technology Services",INSIGHT DIRECT UK LIMITED,2559935,143834.4,Purchase of IT software
Department of Health,NHS Blood and Transplant,19/03/2021,RENT/LEASE,Estates & Facilities,JONES LANG LASALLE,2558338,123768,Property rent costs
Department of Health,NHS Blood and Transplant,19/03/2021,RENT/LEASE,Estates & Facilities,JONES LANG LASALLE,2558391,34538.7,Property rent costs
Department of Health,NHS Blood and Transplant,31/03/2021,OTHER PROFESSIONAL FEES,People,KANSO DESIGN LTD,2560814,50000,Other professional fees
Department of Health,NHS Blood and Transplant,26/03/2021,AVERAGE COST VARIANCE,Miscellaneous and Capital Charges,KIER INFRASTRUCTURE & OVERSEAS LTD T/A KIER HEALTH,2562101,0.01,Difference between Purchase Order and Supplier Invoice price for Stores items
Department of Health,NHS Blood and Transplant,26/03/2021,CAPITAL PURCHASES ACCOUNT,NBS and ODT All Areas,KIER INFRASTRUCTURE & OVERSEAS LTD T/A KIER HEALTH,2562101,153445.15,Purchase of Fixed Assets
Department of Health,NHS Blood and Transplant,31/03/2021,CAPITAL PURCHASES ACCOUNT,NBS and ODT All Areas,KIER INFRASTRUCTURE & OVERSEAS LTD T/A KIER HEALTH,2563742,218738.4,Purchase of Fixed Assets
Department of Health,NHS Blood and Transplant,12/03/2021,CAPITAL PURCHASES ACCOUNT,NBS and ODT All Areas,KIER INFRASTRUCTURE & OVERSEAS LTD T/A KIER HEALTH,2557148,302941.65,Purchase of Fixed Assets
Department of Health,NHS Blood and Transplant,12/02/2021,DIRECT CONSUMABLES,AD - UK COMMISSIONING,King's College Hospital NHS Foundation Trust,3020,77240.06,IAT Nors Consumables Qt3 2021
Department of Health,NHS Blood and Transplant,26/03/2021,PREMISES MAINTENANCE - MINOR WORKS,Change Programme (Blood & Corporate),LOW CARBON ENERGY,2563196,60676.5,Minor works projects costs
Department of Health,NHS Blood and Transplant,12/03/2021,INVENTORY MATERIALS,NBS and ODT All Areas,MACO PHARMA UK LTD,2551928,27046.66,Items purchased for warehouses (and subsequent issue to operational departments)
Department of Health,NHS Blood and Transplant,31/03/2021,INVENTORY MATERIALS,NBS and ODT All Areas,MACO PHARMA UK LTD,2563778,27046.66,Items purchased for warehouses (and subsequent issue to operational departments)
Department of Health,NHS Blood and Transplant,31/03/2021,INVENTORY MATERIALS,NBS and ODT All Areas,MACO PHARMA UK LTD,2563724,27771.12,Items purchased for warehouses (and subsequent issue to operational departments)
Department of Health,NHS Blood and Transplant,19/03/2021,INVENTORY MATERIALS,NBS and ODT All Areas,MACO PHARMA UK LTD,2554683,28321.92,Items purchased for warehouses (and subsequent issue to operational departments)
Department of Health,NHS Blood and Transplant,26/03/2021,INVENTORY MATERIALS,NBS and ODT All Areas,MACO PHARMA UK LTD,2556853,31554.43,Items purchased for warehouses (and subsequent issue to operational departments)
Department of Health,NHS Blood and Transplant,31/03/2021,INVENTORY MATERIALS,NBS and ODT All Areas,MACO PHARMA UK LTD,2561928,34578.43,Items purchased for warehouses (and subsequent issue to operational departments)
Department of Health,NHS Blood and Transplant,26/03/2021,INVENTORY MATERIALS,NBS and ODT All Areas,MACO PHARMA UK LTD,2557192,36062.21,Items purchased for warehouses (and subsequent issue to operational departments)
Department of Health,NHS Blood and Transplant,31/03/2021,INVENTORY MATERIALS,NBS and ODT All Areas,MACO PHARMA UK LTD,2559748,40569.98,Items purchased for warehouses (and subsequent issue to operational departments)
Department of Health,NHS Blood and Transplant,26/03/2021,INVENTORY MATERIALS,NBS and ODT All Areas,MACO PHARMA UK LTD,2555123,43593.98,Items purchased for warehouses (and subsequent issue to operational departments)
Department of Health,NHS Blood and Transplant,12/03/2021,INVENTORY MATERIALS,NBS and ODT All Areas,MACO PHARMA UK LTD,2551917,43903.1,Items purchased for warehouses (and subsequent issue to operational departments)
Department of Health,NHS Blood and Transplant,26/03/2021,INVENTORY MATERIALS,NBS and ODT All Areas,MACO PHARMA UK LTD,2557186,45077.76,Items purchased for warehouses (and subsequent issue to operational departments)
Department of Health,NHS Blood and Transplant,19/03/2021,INVENTORY MATERIALS,NBS and ODT All Areas,MACO PHARMA UK LTD,2554701,45077.76,Items purchased for warehouses (and subsequent issue to operational departments)
Department of Health,NHS Blood and Transplant,31/03/2021,INVENTORY MATERIALS,NBS and ODT All Areas,MACO PHARMA UK LTD,2561327,48101.76,Items purchased for warehouses (and subsequent issue to operational departments)
Department of Health,NHS Blood and Transplant,31/03/2021,INVENTORY MATERIALS,NBS and ODT All Areas,MACO PHARMA UK LTD,2559721,48132,Items purchased for warehouses (and subsequent issue to operational departments)
Department of Health,NHS Blood and Transplant,05/03/2021,INVENTORY MATERIALS,NBS and ODT All Areas,MACO PHARMA UK LTD,2551944,54093.31,Items purchased for warehouses (and subsequent issue to operational departments)
Department of Health,NHS Blood and Transplant,19/03/2021,INVENTORY MATERIALS,NBS and ODT All Areas,MACO PHARMA UK LTD,2554707,54093.31,Items purchased for warehouses (and subsequent issue to operational departments)
Department of Health,NHS Blood and Transplant,31/03/2021,INVENTORY MATERIALS,NBS and ODT All Areas,MACO PHARMA UK LTD,2563729,54093.31,Items purchased for warehouses (and subsequent issue to operational departments)
Department of Health,NHS Blood and Transplant,05/03/2021,INVENTORY MATERIALS,NBS and ODT All Areas,MACO PHARMA UK LTD,2551934,58601.09,Items purchased for warehouses (and subsequent issue to operational departments)
Department of Health,NHS Blood and Transplant,31/03/2021,INVENTORY MATERIALS,NBS and ODT All Areas,MACO PHARMA UK LTD,2561332,62084.93,Items purchased for warehouses (and subsequent issue to operational departments)
Department of Health,NHS Blood and Transplant,31/03/2021,INVENTORY MATERIALS,NBS and ODT All Areas,MACO PHARMA UK LTD,2558980,62199.89,Items purchased for warehouses (and subsequent issue to operational departments)
Department of Health,NHS Blood and Transplant,12/03/2021,INVENTORY MATERIALS,NBS and ODT All Areas,MACO PHARMA UK LTD,2551922,63655.49,Items purchased for warehouses (and subsequent issue to operational departments)
Department of Health,NHS Blood and Transplant,12/03/2021,INVENTORY MATERIALS,NBS and ODT All Areas,MACO PHARMA UK LTD,2551925,66822.62,Items purchased for warehouses (and subsequent issue to operational departments)
Department of Health,NHS Blood and Transplant,26/03/2021,INVENTORY MATERIALS,NBS and ODT All Areas,MACO PHARMA UK LTD,2556818,68124.24,Items purchased for warehouses (and subsequent issue to operational departments)
Department of Health,NHS Blood and Transplant,05/03/2021,INVENTORY MATERIALS,NBS and ODT All Areas,MACO PHARMA UK LTD,2551947,70640.64,Items purchased for warehouses (and subsequent issue to operational departments)
Department of Health,NHS Blood and Transplant,31/03/2021,INVENTORY MATERIALS,NBS and ODT All Areas,MACO PHARMA UK LTD,2558401,70640.64,Items purchased for warehouses (and subsequent issue to operational departments)
Department of Health,NHS Blood and Transplant,31/03/2021,INVENTORY MATERIALS,NBS and ODT All Areas,MACO PHARMA UK LTD,2563775,70962.62,Items purchased for warehouses (and subsequent issue to operational departments)
Department of Health,NHS Blood and Transplant,31/03/2021,INVENTORY MATERIALS,NBS and ODT All Areas,MACO PHARMA UK LTD,2561925,76632.19,Items purchased for warehouses (and subsequent issue to operational departments)
Department of Health,NHS Blood and Transplant,19/03/2021,INVENTORY MATERIALS,NBS and ODT All Areas,MACO PHARMA UK LTD,2554687,84163.97,Items purchased for warehouses (and subsequent issue to operational departments)
Department of Health,NHS Blood and Transplant,31/03/2021,EXTERNAL SERVICES OTHER,Convalescent Plasma,MADE TECH LTD,2558150,36825.22,External costs of providing other services
Department of Health,NHS Blood and Transplant,31/03/2021,EXTERNAL SERVICES OTHER,Convalescent Plasma,MADE TECH LTD,2559948,65850.46,External costs of providing other services
Department of Health,NHS Blood and Transplant,31/03/2021,AVERAGE COST VARIANCE,Miscellaneous and Capital Charges,MANNING GOTTLIEB OMD,2563900,-16.19,Difference between Purchase Order and Supplier Invoice price for Stores items
Department of Health,NHS Blood and Transplant,12/03/2021,AVERAGE COST VARIANCE,Miscellaneous and Capital Charges,MANNING GOTTLIEB OMD,2553992,-0.1,Difference between Purchase Order and Supplier Invoice price for Stores items
Department of Health,NHS Blood and Transplant,12/03/2021,AVERAGE COST VARIANCE,Miscellaneous and Capital Charges,MANNING GOTTLIEB OMD,2553988,-0.06,Difference between Purchase Order and Supplier Invoice price for Stores items
Department of Health,NHS Blood and Transplant,26/03/2021,EXTERNAL MARKETING SERVICES,OTDT - Change Programme,MANNING GOTTLIEB OMD,2559867,-579689.71,"External costs of marketing services, primarily relating to communications with donors"
Department of Health,NHS Blood and Transplant,26/03/2021,EXTERNAL MARKETING SERVICES,OTDT - Change Programme,MANNING GOTTLIEB OMD,2561413,-355436.6,"External costs of marketing services, primarily relating to communications with donors"
Department of Health,NHS Blood and Transplant,12/03/2021,EXTERNAL MARKETING SERVICES,OTDT - Change Programme,MANNING GOTTLIEB OMD,2557614,-58036.22,"External costs of marketing services, primarily relating to communications with donors"
Department of Health,NHS Blood and Transplant,31/03/2021,EXTERNAL MARKETING SERVICES,OTDT - Change Programme,MANNING GOTTLIEB OMD,2564706,-31628.39,"External costs of marketing services, primarily relating to communications with donors"
Department of Health,NHS Blood and Transplant,31/03/2021,EXTERNAL MARKETING SERVICES,OTDT - Change Programme,MANNING GOTTLIEB OMD,2562952,21935.44,"External costs of marketing services, primarily relating to communications with donors"
Department of Health,NHS Blood and Transplant,31/03/2021,EXTERNAL MARKETING SERVICES,OTDT - Change Programme,MANNING GOTTLIEB OMD,2562957,21935.44,"External costs of marketing services, primarily relating to communications with donors"
Department of Health,NHS Blood and Transplant,26/03/2021,EXTERNAL MARKETING SERVICES,OTDT - Change Programme,MANNING GOTTLIEB OMD,2554018,22978.6,"External costs of marketing services, primarily relating to communications with donors"
Department of Health,NHS Blood and Transplant,26/03/2021,EXTERNAL MARKETING SERVICES,OTDT - Change Programme,MANNING GOTTLIEB OMD,2554022,25000.96,"External costs of marketing services, primarily relating to communications with donors"
Department of Health,NHS Blood and Transplant,31/03/2021,EXTERNAL MARKETING SERVICES,OTDT - Change Programme,MANNING GOTTLIEB OMD,2561416,25040.72,"External costs of marketing services, primarily relating to communications with donors"
Department of Health,NHS Blood and Transplant,12/03/2021,EXTERNAL MARKETING SERVICES,OTDT - Change Programme,MANNING GOTTLIEB OMD,2554014,26510.3,"External costs of marketing services, primarily relating to communications with donors"
Department of Health,NHS Blood and Transplant,31/03/2021,EXTERNAL MARKETING SERVICES,OTDT - Change Programme,MANNING GOTTLIEB OMD,2561417,34167.27,"External costs of marketing services, primarily relating to communications with donors"
Department of Health,NHS Blood and Transplant,26/03/2021,EXTERNAL MARKETING SERVICES,OTDT - Change Programme,MANNING GOTTLIEB OMD,2557702,46149.36,"External costs of marketing services, primarily relating to communications with donors"
Department of Health,NHS Blood and Transplant,26/03/2021,EXTERNAL MARKETING SERVICES,OTDT - Change Programme,MANNING GOTTLIEB OMD,2557613,58950.58,"External costs of marketing services, primarily relating to communications with donors"
Department of Health,NHS Blood and Transplant,26/03/2021,EXTERNAL MARKETING SERVICES,OTDT - Change Programme,MANNING GOTTLIEB OMD,2554033,71359.59,"External costs of marketing services, primarily relating to communications with donors"
Department of Health,NHS Blood and Transplant,26/03/2021,EXTERNAL MARKETING SERVICES,OTDT - Change Programme,MANNING GOTTLIEB OMD,2554555,73453.89,"External costs of marketing services, primarily relating to communications with donors"
Department of Health,NHS Blood and Transplant,26/03/2021,EXTERNAL MARKETING SERVICES,OTDT - Change Programme,MANNING GOTTLIEB OMD,2557712,75296.22,"External costs of marketing services, primarily relating to communications with donors"
Department of Health,NHS Blood and Transplant,26/03/2021,EXTERNAL MARKETING SERVICES,OTDT - Change Programme,MANNING GOTTLIEB OMD,2554028,91435.74,"External costs of marketing services, primarily relating to communications with donors"
Department of Health,NHS Blood and Transplant,12/03/2021,EXTERNAL MARKETING SERVICES,OTDT - Change Programme,MANNING GOTTLIEB OMD,2554040,148305.49,"External costs of marketing services, primarily relating to communications with donors"
Department of Health,NHS Blood and Transplant,26/03/2021,EXTERNAL MARKETING SERVICES,OTDT - Change Programme,MANNING GOTTLIEB OMD,2557615,314999.81,"External costs of marketing services, primarily relating to communications with donors"
Department of Health,NHS Blood and Transplant,31/03/2021,EXTERNAL MARKETING SERVICES,OTDT - Change Programme,MANNING GOTTLIEB OMD,2563312,345052.47,"External costs of marketing services, primarily relating to communications with donors"
Department of Health,NHS Blood and Transplant,12/03/2021,EXTERNAL MARKETING SERVICES,OTDT - Change Programme,MANNING GOTTLIEB OMD,2553051,434189.02,"External costs of marketing services, primarily relating to communications with donors"
Department of Health,NHS Blood and Transplant,26/03/2021,EXTERNAL MARKETING SERVICES,OTDT - Change Programme,MANNING GOTTLIEB OMD,2559976,609870.86,"External costs of marketing services, primarily relating to communications with donors"
Department of Health,NHS Blood and Transplant,26/03/2021,EXTERNAL SERVICES OTHER,Convalescent Plasma,MANNING GOTTLIEB OMD,2559875,23756.59,External costs of providing other services
Department of Health,NHS Blood and Transplant,12/03/2021,EXTERNAL SERVICES OTHER,Convalescent Plasma,MANNING GOTTLIEB OMD,2553988,38867.38,External costs of providing other services
Department of Health,NHS Blood and Transplant,26/03/2021,EXTERNAL SERVICES OTHER,Convalescent Plasma,MANNING GOTTLIEB OMD,2557646,46329.62,External costs of providing other services
Department of Health,NHS Blood and Transplant,12/03/2021,EXTERNAL SERVICES OTHER,Convalescent Plasma,MANNING GOTTLIEB OMD,2552993,62176.31,External costs of providing other services
Department of Health,NHS Blood and Transplant,12/03/2021,EXTERNAL SERVICES OTHER,Convalescent Plasma,MANNING GOTTLIEB OMD,2553992,62187.82,External costs of providing other services
Department of Health,NHS Blood and Transplant,12/03/2021,EXTERNAL SERVICES OTHER,Convalescent Plasma,MANNING GOTTLIEB OMD,2553911,114712.41,External costs of providing other services
Department of Health,NHS Blood and Transplant,12/03/2021,EXTERNAL SERVICES OTHER,Convalescent Plasma,MANNING GOTTLIEB OMD,2554012,145987.63,External costs of providing other services
Department of Health,NHS Blood and Transplant,12/03/2021,EXTERNAL SERVICES OTHER,Convalescent Plasma,MANNING GOTTLIEB OMD,2554008,240470.54,External costs of providing other services
Department of Health,NHS Blood and Transplant,12/03/2021,EXTERNAL SERVICES OTHER,Convalescent Plasma,MANNING GOTTLIEB OMD,2552997,281480.42,External costs of providing other services
Department of Health,NHS Blood and Transplant,12/03/2021,EXTERNAL SERVICES OTHER,Convalescent Plasma,MANNING GOTTLIEB OMD,2554004,315701.08,External costs of providing other services
Department of Health,NHS Blood and Transplant,12/03/2021,MEDIA ADVERTISING,Donor Experience,MANNING GOTTLIEB OMD,2553882,23560.63,Media advertising costs
Department of Health,NHS Blood and Transplant,26/03/2021,MEDIA ADVERTISING,Donor Experience,MANNING GOTTLIEB OMD,2560533,25457.27,Media advertising costs
Department of Health,NHS Blood and Transplant,31/03/2021,MEDIA ADVERTISING,Donor Experience,MANNING GOTTLIEB OMD,2563314,26121.37,Media advertising costs
Department of Health,NHS Blood and Transplant,26/03/2021,MEDIA ADVERTISING,Donor Experience,MANNING GOTTLIEB OMD,2554541,28219.3,Media advertising costs
Department of Health,NHS Blood and Transplant,31/03/2021,MEDIA ADVERTISING,Donor Experience,MANNING GOTTLIEB OMD,2561415,30081.66,Media advertising costs
Department of Health,NHS Blood and Transplant,12/03/2021,MEDIA ADVERTISING,Donor Experience,MANNING GOTTLIEB OMD,2544427,30184.86,Media advertising costs
Department of Health,NHS Blood and Transplant,12/03/2021,MEDIA ADVERTISING,Donor Experience,MANNING GOTTLIEB OMD,2553066,34803.13,Media advertising costs
Department of Health,NHS Blood and Transplant,31/03/2021,MEDIA ADVERTISING,Donor Experience,MANNING GOTTLIEB OMD,2544429,35644.92,Media advertising costs
Department of Health,NHS Blood and Transplant,12/03/2021,MEDIA ADVERTISING,Donor Experience,MANNING GOTTLIEB OMD,2553057,36166.88,Media advertising costs
Department of Health,NHS Blood and Transplant,12/03/2021,MEDIA ADVERTISING,Donor Experience,MANNING GOTTLIEB OMD,2553987,63723.82,Media advertising costs
Department of Health,NHS Blood and Transplant,12/03/2021,MEDIA ADVERTISING,Convalescent Plasma,MANNING GOTTLIEB OMD,2554002,66250.06,Media advertising costs
Department of Health,NHS Blood and Transplant,31/03/2021,MEDIA ADVERTISING,Donor Experience,MANNING GOTTLIEB OMD,2563900,81647.45,Media advertising costs
Department of Health,NHS Blood and Transplant,12/03/2021,MEDIA ADVERTISING,Donor Experience,MANNING GOTTLIEB OMD,2553071,81647.55,Media advertising costs
Department of Health,NHS Blood and Transplant,12/03/2021,MEDIA ADVERTISING,Convalescent Plasma,MANNING GOTTLIEB OMD,2553004,85483.13,Media advertising costs
Department of Health,NHS Blood and Transplant,12/03/2021,MEDIA ADVERTISING,Convalescent Plasma,MANNING GOTTLIEB OMD,2553998,87768.59,Media advertising costs
Department of Health,NHS Blood and Transplant,26/03/2021,CAPITAL PURCHASES ACCOUNT,NBS and ODT All Areas,MEDICAL SUPPLY CO. LTD,2559544,33183.05,Purchase of Fixed Assets
Department of Health,NHS Blood and Transplant,31/03/2021,EXTERNAL SERVICES OTHER,Convalescent Plasma,MEDICHECKS LTD,2565336,488150,External costs of providing other services
Department of Health,NHS Blood and Transplant,09/03/2021,AVERAGE COST VARIANCE,Miscellaneous and Capital Charges,MEISE GMBH MEDIZINTECHNIK,2556111,1.81,Difference between Purchase Order and Supplier Invoice price for Stores items
Department of Health,NHS Blood and Transplant,09/03/2021,INVENTORY MATERIALS,NBS and ODT All Areas,MEISE GMBH MEDIZINTECHNIK,2556111,72542.48,Items purchased for warehouses (and subsequent issue to operational departments)
Department of Health,NHS Blood and Transplant,31/03/2021,OTHER PROFESSIONAL FEES,Estates & Facilities,MITIE TECHNICAL FACILITIES MANAGEMENT,2562724,11587.4,Other professional fees
Department of Health,NHS Blood and Transplant,31/03/2021,PREMISES MAINTENANCE - MINOR WORKS,Estates & Facilities,MITIE TECHNICAL FACILITIES MANAGEMENT,2562731,2959,Minor works projects costs
Department of Health,NHS Blood and Transplant,26/03/2021,PREMISES MAINTENANCE - MINOR WORKS,Estates & Facilities,MITIE TECHNICAL FACILITIES MANAGEMENT,2562761,6507.34,Minor works projects costs
Department of Health,NHS Blood and Transplant,26/03/2021,PREMISES MAINTENANCE - MINOR WORKS,Estates & Facilities,MITIE TECHNICAL FACILITIES MANAGEMENT,2562740,27336.86,Minor works projects costs
Department of Health,NHS Blood and Transplant,26/03/2021,PREMISES MAINTENANCE - MINOR WORKS,Estates & Facilities,MITIE TECHNICAL FACILITIES MANAGEMENT,2562742,37538.31,Minor works projects costs
Department of Health,NHS Blood and Transplant,12/03/2021,PREMISES MAINTENANCE - MINOR WORKS,Estates & Facilities,MITIE TECHNICAL FACILITIES MANAGEMENT,2557154,44522.13,Minor works projects costs
Department of Health,NHS Blood and Transplant,26/03/2021,PREMISES MAINTENANCE - MINOR WORKS,Blood Supply: Blood Donation,MITIE TECHNICAL FACILITIES MANAGEMENT,2562757,64260.9,Minor works projects costs
Department of Health,NHS Blood and Transplant,31/03/2021,PREMISES MAINTENANCE - PLANNED,Estates & Facilities,MITIE TECHNICAL FACILITIES MANAGEMENT,2562738,141292.61,Planned / scheduled premises maintenace costs
Department of Health,NHS Blood and Transplant,26/03/2021,PREMISES MAINTENANCE - REACTIVE,Convalescent Plasma,MITIE TECHNICAL FACILITIES MANAGEMENT,2562761,415.8,Ad-hoc / reactive premises maintenance costs
Department of Health,NHS Blood and Transplant,31/03/2021,PREMISES MAINTENANCE - REACTIVE,"Blood Supply: Manufacturing, Testing & Issue",MITIE TECHNICAL FACILITIES MANAGEMENT,2562731,2475,Ad-hoc / reactive premises maintenance costs
Department of Health,NHS Blood and Transplant,31/03/2021,PREMISES MAINTENANCE - REACTIVE,Estates & Facilities,MITIE TECHNICAL FACILITIES MANAGEMENT,2562724,12655.77,Ad-hoc / reactive premises maintenance costs
Department of Health,NHS Blood and Transplant,26/03/2021,PREMISES MAINTENANCE - REACTIVE,Estates & Facilities,MITIE TECHNICAL FACILITIES MANAGEMENT,2562761,14916.94,Ad-hoc / reactive premises maintenance costs
Department of Health,NHS Blood and Transplant,31/03/2021,PREMISES MAINTENANCE - REACTIVE,Estates & Facilities,MITIE TECHNICAL FACILITIES MANAGEMENT,2562731,17724.16,Ad-hoc / reactive premises maintenance costs
Department of Health,NHS Blood and Transplant,26/03/2021,PREMISES MAINTENANCE - REACTIVE,Estates & Facilities,MITIE TECHNICAL FACILITIES MANAGEMENT,2559887,48331.04,Ad-hoc / reactive premises maintenance costs
Department of Health,NHS Blood and Transplant,12/03/2021,CAPITAL PURCHASES ACCOUNT,NBS and ODT All Areas,MONMOUTH SCIENTIFIC LTD,2558511,61020,Purchase of Fixed Assets
Department of Health,NHS Blood and Transplant,31/03/2021,AUDIT EXTERNAL FINANCIAL,Finance,NATIONAL AUDIT OFFICE,2559984,44500,Fees for external audit of statutory accounts
Department of Health,NHS Blood and Transplant,26/02/2021,CTS EYE RETRIEVAL COSTS,EYE RETRIEVAL SCHEME,NHS Lothian,3023,54314,Contracts with other NHS bodies for eye retrieval costs
Department of Health,NHS Blood and Transplant,12/02/2021,DIRECT CONSUMABLES,AD - UK COMMISSIONING,NHS Lothian,3020,43530.28,IAT Nors Consumables Qt3 2021
Department of Health,NHS Blood and Transplant,31/03/2021,AVERAGE COST VARIANCE,Miscellaneous and Capital Charges,NHS PROFESSIONALS,2563165,-0.25,Difference between Purchase Order and Supplier Invoice price for Stores items
Department of Health,NHS Blood and Transplant,31/03/2021,TEMPORARY - MEDICAL,Convalescent Plasma,NHS PROFESSIONALS,2564513,19760,Temporary Staff costs
Department of Health,NHS Blood and Transplant,31/03/2021,TEMPORARY - MEDICAL,Convalescent Plasma,NHS PROFESSIONALS,2561368,55201.26,Temporary Staff costs
Department of Health,NHS Blood and Transplant,31/03/2021,TEMPORARY - MEDICAL,Convalescent Plasma,NHS PROFESSIONALS,2563165,58255.75,Temporary Staff costs
Department of Health,NHS Blood and Transplant,31/03/2021,TEMPORARY - MEDICAL,Convalescent Plasma,NHS PROFESSIONALS,2561364,60166.12,Temporary Staff costs
Department of Health,NHS Blood and Transplant,26/03/2021,TEMPORARY - MEDICAL,Convalescent Plasma,NHS PROFESSIONALS,2555800,61754.4,Temporary Staff costs
Department of Health,NHS Blood and Transplant,12/03/2021,TEMPORARY - MEDICAL,Convalescent Plasma,NHS PROFESSIONALS,2551943,64323.1,Temporary Staff costs
Department of Health,NHS Blood and Transplant,05/03/2021,TEMPORARY - MEDICAL,Convalescent Plasma,NHS PROFESSIONALS,2550593,64808.58,Temporary Staff costs
Department of Health,NHS Blood and Transplant,19/03/2021,TEMPORARY - MEDICAL,Convalescent Plasma,NHS PROFESSIONALS,2554726,67045.8,Temporary Staff costs
Department of Health,NHS Blood and Transplant,31/03/2021,TEMPORARY-SCIENTIFIC & TECHNICAL,"Blood Supply: Manufacturing, Testing & Issue",NHS PROFESSIONALS,2564513,1244.55,Temporary Staff costs
Department of Health,NHS Blood and Transplant,31/03/2021,TEMPORARY-SCIENTIFIC & TECHNICAL,Miscellaneous and Capital Charges,NHS PROFESSIONALS,2564513,1580.48,Temporary Staff costs
Department of Health,NHS Blood and Transplant,12/03/2021,TEMPORARY-SCIENTIFIC & TECHNICAL,"Blood Supply: Manufacturing, Testing & Issue",NHS PROFESSIONALS,2551943,2908.12,Temporary Staff costs
Department of Health,NHS Blood and Transplant,05/03/2021,TEMPORARY-SCIENTIFIC & TECHNICAL,Miscellaneous and Capital Charges,NHS PROFESSIONALS,2550593,3057.78,Temporary Staff costs
Department of Health,NHS Blood and Transplant,31/03/2021,TEMPORARY-SCIENTIFIC & TECHNICAL,"Blood Supply: Manufacturing, Testing & Issue",NHS PROFESSIONALS,2561364,3113.49,Temporary Staff costs
Department of Health,NHS Blood and Transplant,19/03/2021,TEMPORARY-SCIENTIFIC & TECHNICAL,"Blood Supply: Manufacturing, Testing & Issue",NHS PROFESSIONALS,2554726,3310.54,Temporary Staff costs
Department of Health,NHS Blood and Transplant,31/03/2021,TEMPORARY-SCIENTIFIC & TECHNICAL,Miscellaneous and Capital Charges,NHS PROFESSIONALS,2563165,3510.23,Temporary Staff costs
Department of Health,NHS Blood and Transplant,26/03/2021,TEMPORARY-SCIENTIFIC & TECHNICAL,"Blood Supply: Manufacturing, Testing & Issue",NHS PROFESSIONALS,2555800,3512.2,Temporary Staff costs
Department of Health,NHS Blood and Transplant,31/03/2021,TEMPORARY-SCIENTIFIC & TECHNICAL,Miscellaneous and Capital Charges,NHS PROFESSIONALS,2561364,3875.73,Temporary Staff costs
Department of Health,NHS Blood and Transplant,31/03/2021,TEMPORARY-SCIENTIFIC & TECHNICAL,"Blood Supply: Manufacturing, Testing & Issue",NHS PROFESSIONALS,2561368,5179.63,Temporary Staff costs
Department of Health,NHS Blood and Transplant,31/03/2021,TEMPORARY-SCIENTIFIC & TECHNICAL,Miscellaneous and Capital Charges,NHS PROFESSIONALS,2561368,5181.11,Temporary Staff costs
Department of Health,NHS Blood and Transplant,31/03/2021,TEMPORARY-SCIENTIFIC & TECHNICAL,"Blood Supply: Manufacturing, Testing & Issue",NHS PROFESSIONALS,2563165,5340.28,Temporary Staff costs
Department of Health,NHS Blood and Transplant,05/03/2021,TEMPORARY-SCIENTIFIC & TECHNICAL,"Blood Supply: Manufacturing, Testing & Issue",NHS PROFESSIONALS,2550593,5391.21,Temporary Staff costs
Department of Health,NHS Blood and Transplant,19/03/2021,TEMPORARY-SCIENTIFIC & TECHNICAL,Miscellaneous and Capital Charges,NHS PROFESSIONALS,2554726,5495.05,Temporary Staff costs
Department of Health,NHS Blood and Transplant,26/03/2021,TEMPORARY-SCIENTIFIC & TECHNICAL,Miscellaneous and Capital Charges,NHS PROFESSIONALS,2555800,5542.16,Temporary Staff costs
Department of Health,NHS Blood and Transplant,12/03/2021,TEMPORARY-SCIENTIFIC & TECHNICAL,Miscellaneous and Capital Charges,NHS PROFESSIONALS,2551943,6974.54,Temporary Staff costs
Department of Health,NHS Blood and Transplant,31/03/2021,EXTERNAL SERVICES OTHER,Organ Donation & Transplantation,NORTHGATE PUBLIC SERVICES (UK) LIMITED,2561272,31050,External costs of providing other services
Department of Health,NHS Blood and Transplant,31/03/2021,EXTERNAL SERVICES OTHER,"Digital, Data and Technology Services",NORTHGATE PUBLIC SERVICES (UK) LIMITED,2562520,262666,External costs of providing other services
Department of Health,NHS Blood and Transplant,26/02/2021,CTS EYE RETRIEVAL COSTS,ODT OPT OUT CONSULTATION - OPERATIONS,Nottingham University Hospital NHS Trust,3024,27720,Contracts with other NHS bodies for eye retrieval costs
Department of Health,NHS Blood and Transplant,19/03/2021,VEHICLE FUEL & OILS,Blood Supply: Logistics,OIL NRG LIMITED,2556003,29089.03,Charges for vehicle fuel
Department of Health,NHS Blood and Transplant,26/03/2021,EXTERNAL SERVICES OTHER,OTDT - Change Programme,OPEN ANSWERS LTD,2556218,21338,External costs of providing other services
Department of Health,NHS Blood and Transplant,12/03/2021,EXTERNAL SERVICES OTHER,OTDT - Change Programme,OPEN ANSWERS LTD,2553746,28420,External costs of providing other services
Department of Health,NHS Blood and Transplant,26/03/2021,IT SOFTWARE LICENCE FEES,"Digital, Data and Technology Services",ORACLE CORPORATION UK  LTD,2558099,40460.54,Purchase of IT software licences
Department of Health,NHS Blood and Transplant,12/03/2021,RENT/LEASE,Estates & Facilities,OXFORD RADCLIFFE HOSPITALS NHS TRUST,2558405,125000,Property rent costs
Department of Health,NHS Blood and Transplant,26/03/2021,RENT/LEASE,Estates & Facilities,OXFORD RADCLIFFE HOSPITALS NHS TRUST,2558405,125000,Property rent costs
Department of Health,NHS Blood and Transplant,12/02/2021,DIRECT CONSUMABLES,AD - UK COMMISSIONING,Oxford University Hospitals NHS Foundation Trust,3020,50663.76,IAT Nors Consumables Qt3 2021
Department of Health,NHS Blood and Transplant,19/03/2021,IT HARDWARE MAINTENANCE,"Digital, Data and Technology Services",PARK PLACE TECHNOLOGIES LTD,2554438,27900,Maintenance costs of IT hardware
Department of Health,NHS Blood and Transplant,19/03/2021,IT HARDWARE MAINTENANCE,"Digital, Data and Technology Services",PARK PLACE TECHNOLOGIES LTD,2554728,50424.97,Maintenance costs of IT hardware
Department of Health,NHS Blood and Transplant,19/03/2021,EQUIPMENT PURCHASES,OTDT - Tissue and Eye Services,PHARMAGRAPH,2554650,29955.6,Purchase of Equipment
Department of Health,NHS Blood and Transplant,05/03/2021,CAPITAL PURCHASES ACCOUNT,NBS and ODT All Areas,PHC EUROPE BV (FRM.PANASONIC BIOMEDICAL SALES EUROPE BV),2553898,27643.92,Purchase of Fixed Assets
Department of Health,NHS Blood and Transplant,12/03/2021,BUSINESS RATES,Convalescent Plasma,PLAN INTERNATIONAL,2558134,3584,Business rates
Department of Health,NHS Blood and Transplant,12/03/2021,RENT/LEASE,Convalescent Plasma,PLAN INTERNATIONAL,2558134,42253,Property rent costs
Department of Health,NHS Blood and Transplant,26/03/2021,EXTERNAL SERVICES OTHER,Miscellaneous and Capital Charges,PRISTINE CONDITION INTERNATIONAL LTD,2557181,22976,External costs of providing other services
Department of Health,NHS Blood and Transplant,26/03/2021,CARRIAGE INWARDS,Miscellaneous and Capital Charges,PROACT IT UK,2562398,-0.01,Carriage charges on stores purchases
Department of Health,NHS Blood and Transplant,12/03/2021,EXTERNAL MARKETING SERVICES,Change Programme (Blood & Corporate),PROACT IT UK,2534227,48000,"External costs of marketing services, primarily relating to communications with donors"
Department of Health,NHS Blood and Transplant,12/03/2021,EXTERNAL MARKETING SERVICES,Change Programme (Blood & Corporate),PROACT IT UK,2504384,166200,"External costs of marketing services, primarily relating to communications with donors"
Department of Health,NHS Blood and Transplant,31/03/2021,EXTERNAL SERVICES OTHER,Change Programme (Blood & Corporate),PROACT IT UK,2563890,29350,External costs of providing other services
Department of Health,NHS Blood and Transplant,26/03/2021,IT HARDWARE,NBS and ODT All Areas,PROACT IT UK,2562398,25067.74,Purchase of IT hardware
Department of Health,NHS Blood and Transplant,12/03/2021,OTHER PROFESSIONAL FEES,"Digital, Data and Technology Services",PROACT IT UK,2534243,27600,Other professional fees
Department of Health,NHS Blood and Transplant,05/03/2021,OTHER PROFESSIONAL FEES,NBS and ODT All Areas,PROACT IT UK,2546593,29700,Other professional fees
Department of Health,NHS Blood and Transplant,12/03/2021,OTHER PROFESSIONAL FEES,Change Programme (Blood & Corporate),PROACT IT UK,2558269,327218.5,Other professional fees
Department of Health,NHS Blood and Transplant,05/03/2021,OTHER PROFESSIONAL FEES,Donor Experience,PUBLIC HEALTH ENGLAND,2550106,27216.11,Other professional fees
Department of Health,NHS Blood and Transplant,26/03/2021,CLEANING CONTRACT,Convalescent Plasma,QFSL CLEANING UK LTD,2559431,27178.41,External cleaning contracts
Department of Health,NHS Blood and Transplant,19/03/2021,RENT/LEASE,Estates & Facilities,RAPLEYS LLP,2559038,82500,Property rent costs
Department of Health,NHS Blood and Transplant,04/02/2021,PURCHASING CARD SUSPENSE,NBS and ODT All Areas,RBS,DD,174478.33,Purchasing Card Expenditure
Department of Health,NHS Blood and Transplant,19/03/2021,RENT/LEASE,Estates & Facilities,REDPATH BRUCE PROPERTY MANAGEMENT LIMITED,2559583,30000,Property rent costs
Department of Health,NHS Blood and Transplant,31/03/2021,TEMPORARY - MEDICAL,Blood Supply: Blood Donation,REED EMPLOYMENT PLC,2564516,4730.52,Temporary Staff costs
Department of Health,NHS Blood and Transplant,31/03/2021,TEMPORARY - MEDICAL,Blood Supply: Blood Donation,REED EMPLOYMENT PLC,2564557,7346.87,Temporary Staff costs
Department of Health,NHS Blood and Transplant,05/03/2021,TEMPORARY - MEDICAL,Convalescent Plasma,REED EMPLOYMENT PLC,2551929,266962.52,Temporary Staff costs
Department of Health,NHS Blood and Transplant,19/03/2021,TEMPORARY - MEDICAL,Convalescent Plasma,REED EMPLOYMENT PLC,2554995,284725.07,Temporary Staff costs
Department of Health,NHS Blood and Transplant,26/03/2021,TEMPORARY - MEDICAL,Convalescent Plasma,REED EMPLOYMENT PLC,2559268,298461.35,Temporary Staff costs
Department of Health,NHS Blood and Transplant,31/03/2021,TEMPORARY - MEDICAL,Convalescent Plasma,REED EMPLOYMENT PLC,2564557,299775.84,Temporary Staff costs
Department of Health,NHS Blood and Transplant,19/03/2021,TEMPORARY - MEDICAL,Convalescent Plasma,REED EMPLOYMENT PLC,2556876,304671.05,Temporary Staff costs
Department of Health,NHS Blood and Transplant,31/03/2021,TEMPORARY - MEDICAL,Convalescent Plasma,REED EMPLOYMENT PLC,2564516,306851.15,Temporary Staff costs
Department of Health,NHS Blood and Transplant,31/03/2021,TEMPORARY - MEDICAL,Convalescent Plasma,REED EMPLOYMENT PLC,2560113,374564.37,Temporary Staff costs
Department of Health,NHS Blood and Transplant,12/03/2021,CLEANING CONTRACT,Estates & Facilities,REGENT CLEANING SERVICES,2556276,65742.13,External cleaning contracts
Department of Health,NHS Blood and Transplant,26/03/2021,CLEANING CONTRACT,Estates & Facilities,REGENT CLEANING SERVICES,2560791,65742.13,External cleaning contracts
Department of Health,NHS Blood and Transplant,26/03/2021,CLEANING CONTRACT,Estates & Facilities,REGENT CLEANING SERVICES,2560789,75393.07,External cleaning contracts
Department of Health,NHS Blood and Transplant,12/03/2021,CLEANING CONTRACT,Estates & Facilities,REGENT CLEANING SERVICES,2557563,75393.07,External cleaning contracts
Department of Health,NHS Blood and Transplant,19/03/2021,TEMPORARY OTHER,Change Programme (Blood & Corporate),REPLY LIMITED,2550865,47550,Temporary Staff costs
Department of Health,NHS Blood and Transplant,31/03/2021,TEMPORARY OTHER,Change Programme (Blood & Corporate),REPLY LIMITED,2558135,48000,Temporary Staff costs
Department of Health,NHS Blood and Transplant,31/03/2021,TEMPORARY OTHER,Change Programme (Blood & Corporate),REPLY LIMITED,2550868,49860,Temporary Staff costs
Department of Health,NHS Blood and Transplant,19/03/2021,TEMPORARY OTHER,Change Programme (Blood & Corporate),REPLY LIMITED,2550873,52440,Temporary Staff costs
Department of Health,NHS Blood and Transplant,26/03/2021,TEMPORARY OTHER,Change Programme (Blood & Corporate),REPLY LIMITED,2558132,53490,Temporary Staff costs
Department of Health,NHS Blood and Transplant,31/03/2021,AVERAGE COST VARIANCE,Miscellaneous and Capital Charges,ROCHE DIAGNOSTICS LIMITED,2562067,0.01,Difference between Purchase Order and Supplier Invoice price for Stores items
Department of Health,NHS Blood and Transplant,12/03/2021,TEST KITS NAT,"Blood Supply: Manufacturing, Testing & Issue",ROCHE DIAGNOSTICS LIMITED,2548073,57398.05,For testing of donations and samples for specific markers
Department of Health,NHS Blood and Transplant,31/03/2021,TEST KITS NAT,"Blood Supply: Manufacturing, Testing & Issue",ROCHE DIAGNOSTICS LIMITED,2562067,141615.93,For testing of donations and samples for specific markers
Department of Health,NHS Blood and Transplant,12/03/2021,TEST KITS NAT,"Blood Supply: Manufacturing, Testing & Issue",ROCHE DIAGNOSTICS LIMITED,2547990,163716.84,For testing of donations and samples for specific markers
Department of Health,NHS Blood and Transplant,31/03/2021,TEST KITS NAT,"Blood Supply: Manufacturing, Testing & Issue",ROCHE DIAGNOSTICS LIMITED,2562228,196459.52,For testing of donations and samples for specific markers
Department of Health,NHS Blood and Transplant,12/02/2021,DIRECT CONSUMABLES,AD - UK COMMISSIONING,Royal Brompton and Harefield NHS FT,3020,50070.24,IAT Nors Consumables Qt3 2021
Department of Health,NHS Blood and Transplant,26/02/2021,ORGAN RETREIVAL CONTRACTS,AD - UK COMMISSIONING,Royal Brompton and Harefield NHS FT,3025,75141,Contract with other NHS bodies for IAT 4th Team Payments
Department of Health,NHS Blood and Transplant,12/02/2021,DIRECT CONSUMABLES,AD - UK COMMISSIONING,Royal Free London NHS Doundation Trust,3020,44247.82,IAT Nors Consumables Qt3 2021
Department of Health,NHS Blood and Transplant,12/02/2021,DIRECT CONSUMABLES,AD - UK COMMISSIONING,Royal Papworth Hospital NHS Foundation Trust,3020,33380.16,IAT Nors Consumables Qt3 2021
Department of Health,NHS Blood and Transplant,26/02/2021,ORGAN RETREIVAL CONTRACTS,AD - UK COMMISSIONING,Royal Papworth Hospital NHS Foundation Trust,3025,40986,Contract with other NHS bodies for IAT 4th Team Payments
Department of Health,NHS Blood and Transplant,31/03/2021,IT SOFTWARE LICENCE FEES,"Digital, Data and Technology Services",SAVANT LIMITED,2563210,91812,Purchase of IT software licences
Department of Health,NHS Blood and Transplant,26/03/2021,IT SOFTWARE LICENCE FEES,"Digital, Data and Technology Services",SAVANT LIMITED,2559397,315868,Purchase of IT software licences
Department of Health,NHS Blood and Transplant,12/03/2021,IT SOFTWARE MAINTENANCE,Change Programme (Blood & Corporate),SAVANT LIMITED,2554522,26181.75,Maintenance costs of IT software
Department of Health,NHS Blood and Transplant,12/03/2021,IT SOFTWARE MAINTENANCE,"Digital, Data and Technology Services",SAVANT LIMITED,2555398,113120,Maintenance costs of IT software
Department of Health,NHS Blood and Transplant,19/03/2021,MANAGEMENT CONSULTANTS,Change Programme (Blood & Corporate),SAVANT LIMITED,2554342,77000,Management consultancy fees incurred
Department of Health,NHS Blood and Transplant,05/03/2021,RENT/LEASE,Convalescent Plasma,SAVILLS (UK) LIMITED,2555126,29816.67,Property rent costs
Department of Health,NHS Blood and Transplant,26/03/2021,CAPITAL PURCHASES ACCOUNT,NBS and ODT All Areas,SCC - AUDIOVISUAL DIVISION,2561988,31104,Purchase of Fixed Assets
Department of Health,NHS Blood and Transplant,26/03/2021,IT COMMUNICATIONS LINKS,"Digital, Data and Technology Services",SCC - AUDIOVISUAL DIVISION,2561988,10368,Costs of IT infrastructure communications links
Department of Health,NHS Blood and Transplant,19/03/2021,IT COMMUNICATIONS LINKS,"Digital, Data and Technology Services",SCC - AUDIOVISUAL DIVISION,2555513,45453.48,Costs of IT infrastructure communications links
Department of Health,NHS Blood and Transplant,31/03/2021,IT HARDWARE,"Digital, Data and Technology Services",SCC - AUDIOVISUAL DIVISION,2564093,87033.67,Purchase of IT hardware
Department of Health,NHS Blood and Transplant,31/03/2021,IT HARDWARE MAINTENANCE,"Digital, Data and Technology Services",SCC - AUDIOVISUAL DIVISION,2564093,8285.96,Maintenance costs of IT hardware
Department of Health,NHS Blood and Transplant,19/03/2021,IT SOFTWARE LICENCE FEES,"Digital, Data and Technology Services",SCC - AUDIOVISUAL DIVISION,2555017,30614.84,Purchase of IT software licences
Department of Health,NHS Blood and Transplant,05/03/2021,EXTERNAL TESTING SERVICES,Clinical Services: DTAS,SHEFFIELD TEACHING HOSPITALS NHS FOUNDATION TRUST,2554046,36162.17,External costs of various testing services
Department of Health,NHS Blood and Transplant,19/03/2021,IT SOFTWARE LICENCE FEES,"Digital, Data and Technology Services",SOFTCAT LTD,2559540,148471.2,Purchase of IT software licences
Department of Health,NHS Blood and Transplant,19/03/2021,IT SOFTWARE MAINTENANCE,"Digital, Data and Technology Services",SOFTCAT LTD,2555843,24996.43,Maintenance costs of IT software
Department of Health,NHS Blood and Transplant,19/03/2021,CAPITAL PURCHASES ACCOUNT,NBS and ODT All Areas,TECHNO-PATH (DISTRIBUTION) LTD,2555931,25440,Purchase of Fixed Assets
Department of Health,NHS Blood and Transplant,19/03/2021,CAPITAL PURCHASES ACCOUNT,NBS and ODT All Areas,TECHNO-PATH (DISTRIBUTION) LTD,2555932,50880,Purchase of Fixed Assets
Department of Health,NHS Blood and Transplant,19/03/2021,CAPITAL PURCHASES ACCOUNT,NBS and ODT All Areas,TECHNO-PATH (DISTRIBUTION) LTD,2555929,101760,Purchase of Fixed Assets
Department of Health,NHS Blood and Transplant,19/03/2021,CAPITAL PURCHASES ACCOUNT,NBS and ODT All Areas,TECHNO-PATH (DISTRIBUTION) LTD,2555934,101760,Purchase of Fixed Assets
Department of Health,NHS Blood and Transplant,31/03/2021,EQUIPMENT MAINTENANCE CONTRACT,Blood Supply: Blood Donation,TECHNO-PATH (DISTRIBUTION) LTD,2559569,48743.52,Costs of maintenance contracts on equipment
Department of Health,NHS Blood and Transplant,26/03/2021,AVERAGE COST VARIANCE,Miscellaneous and Capital Charges,TELEPERFORMANCE LIMITED,2558256,-0.01,Difference between Purchase Order and Supplier Invoice price for Stores items
Department of Health,NHS Blood and Transplant,26/03/2021,EXTERNAL MARKETING SERVICES,Donor Experience,TELEPERFORMANCE LIMITED,2558256,138221.81,"External costs of marketing services, primarily relating to communications with donors"
Department of Health,NHS Blood and Transplant,19/03/2021,EXTERNAL MARKETING SERVICES,Donor Experience,TELEPERFORMANCE LIMITED,2556118,862486.98,"External costs of marketing services, primarily relating to communications with donors"
Department of Health,NHS Blood and Transplant,26/03/2021,CAPITAL PURCHASES ACCOUNT,NBS and ODT All Areas,THAMES CRYOGENICS LTD,2562899,-30629.04,Purchase of Fixed Assets
Department of Health,NHS Blood and Transplant,12/03/2021,CAPITAL PURCHASES ACCOUNT,NBS and ODT All Areas,THAMES CRYOGENICS LTD,2557673,25608,Purchase of Fixed Assets
Department of Health,NHS Blood and Transplant,26/03/2021,CAPITAL PURCHASES ACCOUNT,NBS and ODT All Areas,THAMES CRYOGENICS LTD,2560292,30629.04,Purchase of Fixed Assets
Department of Health,NHS Blood and Transplant,26/03/2021,CAPITAL PURCHASES ACCOUNT,NBS and ODT All Areas,THAMES CRYOGENICS LTD,2562904,30732.24,Purchase of Fixed Assets
Department of Health,NHS Blood and Transplant,12/02/2021,DIRECT CONSUMABLES,AD - UK COMMISSIONING,The Leeds Teaching Hospitals NHS Trust,3020,49489.22,IAT Nors Consumables Qt3 2021
Department of Health,NHS Blood and Transplant,12/02/2021,DIRECT CONSUMABLES,AD - UK COMMISSIONING,The Newcastle upon Tyne Hospitals NHS Foundation Trust,3020,69689.7,IAT Nors Consumables Qt3 2021
Department of Health,NHS Blood and Transplant,31/03/2021,INVENTORY MATERIALS,NBS and ODT All Areas,THERAKOS (UK) LTD,2560181,65880,Items purchased for warehouses (and subsequent issue to operational departments)
Department of Health,NHS Blood and Transplant,31/03/2021,INVENTORY MATERIALS,NBS and ODT All Areas,THERAKOS (UK) LTD,2563999,65880,Items purchased for warehouses (and subsequent issue to operational departments)
Department of Health,NHS Blood and Transplant,05/03/2021,INVENTORY MATERIALS,NBS and ODT All Areas,THERAKOS (UK) LTD,2548436,98820,Items purchased for warehouses (and subsequent issue to operational departments)
Department of Health,NHS Blood and Transplant,31/03/2021,INVENTORY MATERIALS,NBS and ODT All Areas,THERAKOS (UK) LTD,2557634,98820,Items purchased for warehouses (and subsequent issue to operational departments)
Department of Health,NHS Blood and Transplant,12/03/2021,EXTERNAL MARKETING SERVICES,OTDT - Change Programme,TINKER TAYLOR LIMITED,2553365,37600,"External costs of marketing services, primarily relating to communications with donors"
Department of Health,NHS Blood and Transplant,19/03/2021,GAS,Estates & Facilities,TOTAL GAS & POWER LTD,2559741,50261.63,Gas costs
Department of Health,NHS Blood and Transplant,26/03/2021,CAPITAL PURCHASES ACCOUNT,NBS and ODT All Areas,TRUSTCO PLC,2562863,71743.71,Purchase of Fixed Assets
Department of Health,NHS Blood and Transplant,19/03/2021,CAPITAL PURCHASES ACCOUNT,NBS and ODT All Areas,TRUSTCO PLC,2555147,143398.07,Purchase of Fixed Assets
Department of Health,NHS Blood and Transplant,19/03/2021,OTHER PROFESSIONAL FEES,NBS and ODT All Areas,TRUSTCO PLC,2555147,0.5,Other professional fees
Department of Health,NHS Blood and Transplant,19/03/2021,IT SOFTWARE,Change Programme (Blood & Corporate),TRUSTMARQUE SOLUTIONS LIMITED,2559561,48326.06,Purchase of IT software
Department of Health,NHS Blood and Transplant,19/03/2021,IT SOFTWARE,Change Programme (Blood & Corporate),TRUSTMARQUE SOLUTIONS LIMITED,2559565,193293.07,Purchase of IT software
Department of Health,NHS Blood and Transplant,31/03/2021,IT SOFTWARE MAINTENANCE,"Digital, Data and Technology Services",TRUSTMARQUE SOLUTIONS LIMITED,2559558,58223.37,Maintenance costs of IT software
Department of Health,NHS Blood and Transplant,31/03/2021,IT SOFTWARE MAINTENANCE,"Digital, Data and Technology Services",TRUSTMARQUE SOLUTIONS LIMITED,2559556,64213.58,Maintenance costs of IT software
Department of Health,NHS Blood and Transplant,31/03/2021,IT SOFTWARE MAINTENANCE,"Digital, Data and Technology Services",TRUSTMARQUE SOLUTIONS LIMITED,2559554,64296.08,Maintenance costs of IT software
Department of Health,NHS Blood and Transplant,12/02/2021,DIRECT CONSUMABLES,AD - UK COMMISSIONING,University Hospitals Birmingham NHS Foundation Trust,3020,95292.72,IAT Nors Consumables Qt3 2021
Department of Health,NHS Blood and Transplant,05/03/2021,RENT/LEASE,Estates & Facilities,UNIVERSITY HOSPITALS OF MORECAMBE BAY NHS TRUST,2551788,25225.92,Property rent costs
Department of Health,NHS Blood and Transplant,19/03/2021,CAPITAL PURCHASES ACCOUNT,NBS and ODT All Areas,VODAFONE,2558336,52500,Purchase of Fixed Assets
Department of Health,NHS Blood and Transplant,19/03/2021,CAPITAL PURCHASES ACCOUNT,NBS and ODT All Areas,VODAFONE,2558422,122969,Purchase of Fixed Assets
Department of Health,NHS Blood and Transplant,31/03/2021,IT COMMUNICATIONS LINKS,Change Programme (Blood & Corporate),VODAFONE,2561978,2724.1,Costs of IT infrastructure communications links
Department of Health,NHS Blood and Transplant,26/03/2021,IT COMMUNICATIONS LINKS,Convalescent Plasma,VODAFONE,2558227,4930,Costs of IT infrastructure communications links
Department of Health,NHS Blood and Transplant,31/03/2021,IT COMMUNICATIONS LINKS,Convalescent Plasma,VODAFONE,2562393,4930,Costs of IT infrastructure communications links
Department of Health,NHS Blood and Transplant,26/03/2021,IT COMMUNICATIONS LINKS,"Digital, Data and Technology Services",VODAFONE,2558227,25498.07,Costs of IT infrastructure communications links
Department of Health,NHS Blood and Transplant,31/03/2021,IT COMMUNICATIONS LINKS,"Digital, Data and Technology Services",VODAFONE,2562393,28952.08,Costs of IT infrastructure communications links
Department of Health,NHS Blood and Transplant,31/03/2021,IT COMMUNICATIONS LINKS,"Digital, Data and Technology Services",VODAFONE,2561978,127987.01,Costs of IT infrastructure communications links
Department of Health,NHS Blood and Transplant,31/03/2021,IT HARDWARE,"Digital, Data and Technology Services",VODAFONE,2561978,242.99,Purchase of IT hardware
Department of Health,NHS Blood and Transplant,31/03/2021,IT HARDWARE,Change Programme (Blood & Corporate),VODAFONE,2561978,4591.73,Purchase of IT hardware
Department of Health,NHS Blood and Transplant,19/03/2021,IT HARDWARE,"Digital, Data and Technology Services",VODAFONE,2558422,67516.6,Purchase of IT hardware
Department of Health,NHS Blood and Transplant,31/03/2021,IT HARDWARE MAINTENANCE,"Digital, Data and Technology Services",VODAFONE,2561978,61,Maintenance costs of IT hardware
Department of Health,NHS Blood and Transplant,26/03/2021,IT HARDWARE MAINTENANCE,"Digital, Data and Technology Services",VODAFONE,2558227,1535.11,Maintenance costs of IT hardware
Department of Health,NHS Blood and Transplant,31/03/2021,IT HARDWARE MAINTENANCE,"Digital, Data and Technology Services",VODAFONE,2562393,1535.11,Maintenance costs of IT hardware
Department of Health,NHS Blood and Transplant,31/03/2021,IT HARDWARE MAINTENANCE,Change Programme (Blood & Corporate),VODAFONE,2561978,11220,Maintenance costs of IT hardware
Department of Health,NHS Blood and Transplant,31/03/2021,IT SOFTWARE LICENCE FEES,"Digital, Data and Technology Services",VODAFONE,2560497,234379.5,Purchase of IT software licences
Department of Health,NHS Blood and Transplant,26/03/2021,IT SOFTWARE MAINTENANCE,"Digital, Data and Technology Services",VODAFONE,2558227,333.33,Maintenance costs of IT software
Department of Health,NHS Blood and Transplant,31/03/2021,IT SOFTWARE MAINTENANCE,"Digital, Data and Technology Services",VODAFONE,2562393,333.33,Maintenance costs of IT software
Department of Health,NHS Blood and Transplant,31/03/2021,IT SOFTWARE MAINTENANCE,Change Programme (Blood & Corporate),VODAFONE,2561978,2750,Maintenance costs of IT software
Department of Health,NHS Blood and Transplant,31/03/2021,IT SOFTWARE MAINTENANCE,"Digital, Data and Technology Services",VODAFONE,2562409,19454.81,Maintenance costs of IT software
Department of Health,NHS Blood and Transplant,31/03/2021,MOBILE TELEPHONES,"Digital, Data and Technology Services",VODAFONE,2562393,30044.5,Mobile telephone costs
Department of Health,NHS Blood and Transplant,26/03/2021,MOBILE TELEPHONES,"Digital, Data and Technology Services",VODAFONE,2558227,73235.41,Mobile telephone costs
Department of Health,NHS Blood and Transplant,31/03/2021,OTHER PROFESSIONAL FEES,"Digital, Data and Technology Services",VODAFONE,2558334,51331.5,Other professional fees
Department of Health,NHS Blood and Transplant,31/03/2021,TELEPHONES,Change Programme (Blood & Corporate),VODAFONE,2562409,3000,Telephone costs
Department of Health,NHS Blood and Transplant,31/03/2021,TELEPHONES,Quality,VODAFONE,2562409,12547.2,Telephone costs
Department of Health,NHS Blood and Transplant,31/03/2021,TELEPHONES,"Digital, Data and Technology Services",VODAFONE,2562393,31797.06,Telephone costs
Department of Health,NHS Blood and Transplant,26/03/2021,TELEPHONES,"Digital, Data and Technology Services",VODAFONE,2558227,31962.08,Telephone costs
Department of Health,NHS Blood and Transplant,19/03/2021,LEGAL FEES,Change Programme (Blood & Corporate),WEIGHTMANS LLP,2556000,26242.5,Legal fees incurred
Department of Health,NHS Blood and Transplant,12/03/2021,LEGAL FEES,Change Programme (Blood & Corporate),WEIGHTMANS LLP,2551133,33486.25,Legal fees incurred
Department of Health,NHS Blood and Transplant,31/03/2021,LEGAL FEES,Change Programme (Blood & Corporate),WEIGHTMANS LLP,2563295,73756.25,Legal fees incurred
Department of Health,NHS Blood and Transplant,31/03/2021,EXTERNAL SERVICES OTHER,Clinical Services: Research & Development,WGK CONSULTANCY LTD,2561306,50750,External costs of providing other services
Department of Health,NHS Blood and Transplant,19/03/2021,CAPITAL PURCHASES ACCOUNT,NBS and ODT All Areas,ZIMMER LIMITED,2560269,32951.42,Purchase of Fixed Assets
